bitfinex-derivatives/quotes_BTCF0:USTF0_20250218
["timestamp","ask_amount","ask_price","bid_price","bid_amount"]
[1739852929012,0.06793213,96203.0,96194.0,0.10876]
[1739852929212,0.06793213,96203.0,96193.0,0.40088]
[1739852929406,0.0783548,96203.0,96193.0,0.3992]
[1739852929705,0.0783548,96203.0,96198.0,0.006]
[1739852929908,0.0773548,96203.0,96198.0,0.006]
[1739852930104,0.0783548,96203.0,96198.0,0.006]
[1739852930699,0.01142267,96203.0,96198.0,0.006]
[1739852931005,0.01142267,96203.0,96193.0,0.40092]
[1739852931307,0.19211048,96203.0,96193.0,0.4002]
[1739852931692,0.18627287,96200.0,96198.0,0.006]
[1739852932499,0.0327,96199.0,96193.0,0.40084]
[1739852932698,0.0327,96199.0,96193.0,0.4002]
[1739852932999,0.0323,96198.0,96193.0,0.4032]
[1739852934004,0.0263,96198.0,96193.0,0.3962]
[1739852934204,0.0273,96198.0,96193.0,0.3962]
[1739852934597,0.15513928,96195.0,96193.0,0.3962]
[1739852934801,0.15513928,96195.0,96193.0,0.4032]
[1739852935707,0.15613928,96195.0,96193.0,0.4032]
[1739852936203,0.15713928,96195.0,96193.0,0.4062]
[1739852936899,0.002,96195.0,96193.0,0.4062]
[1739852937099,0.002,96195.0,96194.0,0.10908]
[1739852938093,0.10623928,96196.0,96194.0,0.10908]
[1739852938297,0.001,96195.0,96194.0,0.2089236]
[1739852938498,0.05733928,96196.0,96194.0,0.2089236]
[1739852939402,0.001,96195.0,96194.0,0.2149236]
[1739852939799,0.05733928,96196.0,96194.0,0.2149236]
[1739852940103,0.05833928,96196.0,96194.0,0.2149236]
[1739852940303,0.05933928,96196.0,96194.0,0.2209236]
[1739852940504,0.002,96196.0,96194.0,0.2209236]
[1739852950109,0.0325,96195.0,96194.0,0.2209236]
[1739852951212,0.0335,96195.0,96194.0,0.2209236]
[1739852951414,0.001,96195.0,96194.0,0.2209236]
[1739852953013,0.002,96195.0,96194.0,0.2209236]
[1739852955804,0.002,96195.0,96194.0,0.013]
[1739852956010,0.002,96195.0,96194.0,0.12088]
[1739852958516,0.002,96195.0,96194.0,0.013]
[1739852959015,0.002,96195.0,96194.0,0.12072]
[1739852961512,0.002,96195.0,96194.0,0.013]
[1739852961718,0.002,96195.0,96194.0,0.12088]
[1739852966126,0.18827287,96195.0,96194.0,0.12088]
[1739852966313,0.18827287,96195.0,96194.0,0.013]
[1739852969007,0.06978542,96195.0,96194.0,0.013]
[1739852971120,0.06778542,96195.0,96194.0,0.007]
[1739852971818,0.03,96195.0,96194.0,0.007]
[1739852972024,0.03,96195.0,96194.0,0.11424]
[1739852972728,0.14375568,96195.0,96194.0,0.11424]
[1739852972908,0.14375568,96195.0,96194.0,0.007]
[1739852975726,0.19432314,96195.0,96194.0,0.007]
[1739852976820,0.2079432,96185.0,96174.0,0.3608]
[1739852977026,0.3608,96183.0,96174.0,0.3608]
[1739852977220,0.3608,96183.0,96175.0,0.10728]
[1739852977726,0.3608,96183.0,96176.0,0.2079616]
[1739852977930,0.3608,96183.0,96174.0,0.3608]
[1739852978134,0.3608,96183.0,96175.0,0.10728]
[1739852978528,0.3588,96183.0,96175.0,0.10728]
[1739852979429,0.3588,96183.0,96175.0,0.10928]
[1739852980041,0.12201817,96182.0,96175.0,0.10928]
[1739852980338,0.12201817,96182.0,96175.0,0.002]
[1739852981437,0.13254915,96182.0,96175.0,0.002]
[1739852981628,0.11375568,96181.0,96175.0,0.002]
[1739852982029,0.11375568,96181.0,96176.0,0.0308]
[1739852982423,0.11375568,96181.0,96177.0,0.0304]
[1739852983639,0.11375568,96181.0,96177.0,0.0324]
[1739852983839,0.05056746,96180.0,96177.0,0.0324]
[1739852985132,0.05056746,96180.0,96177.0,0.002]
[1739852985336,0.05056746,96180.0,96177.0,0.003]
[1739852985536,0.16432314,96180.0,96177.0,0.003]
[1739852985937,0.0322,96179.0,96177.0,0.003]
[1739852986143,0.0322,96179.0,96178.0,0.10776]
[1739852986846,0.0322,96179.0,96177.0,0.003]
[1739852987047,0.18735865,96179.0,96178.0,0.1076]
[1739852987246,0.18735865,96179.0,96178.0,0.002]
[1739852989045,0.18735865,96179.0,96178.0,0.003]
[1739852989648,0.08277371,96179.0,96178.0,0.003]
[1739852990655,0.19652939,96179.0,96178.0,0.003]
[1739852993262,0.19652939,96179.0,96178.0,0.001]
[1739852993455,0.14595568,96179.0,96178.0,0.003]
[1739852994748,0.11375568,96179.0,96178.0,0.002]
[1739852994949,0.11375568,96179.0,96178.0,0.003]
[1739852996350,0.16432939,96179.0,96178.0,0.003]
[1739852999459,0.16432939,96179.0,96178.0,0.002]
[1739853000860,0.16432939,96179.0,96178.0,0.001]
[1739853001157,0.16432939,96179.0,96178.0,0.002]
[1739853003659,0.23730825,96179.0,96178.0,0.002]
[1739853012470,0.23730825,96179.0,96178.0,0.2099582]
[1739853013464,0.00389637,96179.0,96178.0,0.22014278]
[1739853013660,0.21749205,96186.0,96185.0,0.2079431]
[1739853013861,0.21749205,96186.0,96185.0,0.5687431]
[1739853014862,0.21849205,96186.0,96185.0,0.5687431]
[1739853015467,0.21949205,96186.0,96185.0,0.5687431]
[1739853016471,0.15642791,96186.0,96185.0,0.5697431]
[1739853017669,0.15542791,96186.0,96185.0,0.5707431]
[1739853018066,0.15542791,96186.0,96185.0,0.5727431]
[1739853018266,0.15542791,96186.0,96185.0,0.5717431]
[1739853018466,0.15542791,96186.0,96185.0,0.5727431]
[1739853018660,0.15542791,96186.0,96185.0,0.5697431]
[1739853019074,0.15542791,96186.0,96185.0,0.5717431]
[1739853020566,0.15542791,96188.0,96187.0,0.2079387]
[1739853021677,0.15542791,96188.0,96187.0,0.2089387]
[1739853021876,0.15542791,96188.0,96187.0,0.2148387]
[1739853022076,0.15542791,96188.0,96187.0,0.2158387]
[1739853022271,0.14898672,96188.0,96187.0,0.2158387]
[1739853023873,0.0637,96200.0,96193.0,0.2079255]
[1739853024072,0.0637,96200.0,96199.0,0.3608]
[1739853025067,0.0647,96200.0,96199.0,0.3608]
[1739853025476,0.0677,96200.0,96199.0,0.3608]
[1739853026978,0.0707,96200.0,96199.0,0.3608]
[1739853027477,0.0677,96200.0,96199.0,0.3608]
[1739853027677,0.0637,96200.0,96199.0,0.3608]
[1739853027980,0.0647,96200.0,96199.0,0.3608]
[1739853028178,0.0667,96200.0,96199.0,0.3608]
[1739853028472,0.0657,96200.0,96199.0,0.3608]
[1739853028678,0.0677,96200.0,96199.0,0.3608]
[1739853030070,0.0657,96200.0,96199.0,0.3608]
[1739853030270,0.0667,96200.0,96199.0,0.3608]
[1739853031477,0.0677,96200.0,96199.0,0.3608]
[1739853032684,0.0667,96200.0,96199.0,0.3608]
[1739853033380,0.0657,96200.0,96199.0,0.3608]
[1739853034180,0.0647,96200.0,96199.0,0.3618]
[1739853034882,0.0637,96200.0,96199.0,0.3618]
[1739853035573,0.0637,96200.0,96199.0,0.3628]
[1739853037979,0.0637,96200.0,96199.0,0.3618]
[1739853038782,0.0637,96200.0,96199.0,0.3608]
[1739853053295,0.30076869,96200.0,96199.0,0.3608]
[1739853054995,0.00452153,96200.0,96199.0,0.3608]
[1739853055290,0.00452153,96200.0,96199.0,0.6647]
[1739853055497,0.2164,96231.0,96199.0,0.3647]
[1739853055498,0.2822,96231.0,96199.0,0.3647]
[1739853055694,0.2822,96231.0,96229.0,0.3608]
[1739853056000,0.2822,96231.0,96230.0,0.1092]
[1739853056889,0.0329,96231.0,96230.0,0.1092]
[1739853057203,0.21749205,96232.0,96231.0,0.2078436]
[1739853057403,0.21749205,96232.0,96231.0,0.5686436]
[1739853058100,0.21749205,96232.0,96231.0,0.57920165]
[1739853058496,0.22349205,96232.0,96231.0,0.57920165]
[1739853059100,0.22649205,96232.0,96231.0,0.57920165]
[1739853060194,0.20449205,96232.0,96231.0,0.87920165]
[1739853060794,0.18368548,96239.0,96238.0,0.2078285]
[1739853061103,0.18368548,96239.0,96238.0,0.5686285]
[1739853062304,0.18968548,96239.0,96238.0,0.5696285]
[1739853062703,0.19668548,96239.0,96238.0,0.5696285]
[1739853063106,0.013,96239.0,96238.0,0.5696285]
[1739853065499,0.0452,96239.0,96238.0,0.5696285]
[1739853068407,0.0452,96239.0,96238.0,0.3618]
[1739853068709,0.0452,96239.0,96238.0,0.32106]
[1739853068906,0.0452,96239.0,96238.0,0.2121]
[1739853071811,0.0452,96239.0,96238.0,0.4199285]
[1739853072703,0.013,96239.0,96238.0,0.4199285]
[1739853082419,0.0433,96239.0,96238.0,0.4199285]
[1739853082717,0.013,96239.0,96238.0,0.4199285]
[1739853090714,0.0458,96239.0,96238.0,1.3256485]
[1739853094931,0.013,96239.0,96238.0,1.3256485]
[1739853095329,0.007,96239.0,96238.0,1.3246485]
[1739853095524,0.00015594,96240.0,96238.0,1.3336485]
[1739853095731,0.00015594,96240.0,96239.0,0.0305]
[1739853096129,0.21665419,96270.0,96239.0,0.0305]
[1739853096332,0.03266173,96256.0,96255.0,0.2077918]
[1739853096632,0.18811475,96256.0,96255.0,0.9293918]
[1739853098534,0.19011475,96256.0,96255.0,0.9293918]
[1739853098733,0.19211475,96256.0,96255.0,0.9293918]
[1739853099938,0.19011475,96256.0,96255.0,0.9293918]
[1739853100327,0.19211475,96256.0,96255.0,0.9293918]
[1739853100739,0.19211475,96256.0,96255.0,0.93971093]
[1739853100925,0.19011475,96256.0,96255.0,0.93971093]
[1739853101131,0.03566173,96256.0,96255.0,0.93971093]
[1739853101735,0.03466173,96256.0,96255.0,0.93971093]
[1739853102038,0.03666173,96256.0,96255.0,0.93971093]
[1739853102741,0.03666173,96256.0,96255.0,0.9293918]
[1739853103244,0.03666173,96256.0,96255.0,0.7216]
[1739853103444,0.03566173,96256.0,96255.0,0.7216]
[1739853105050,0.03466173,96256.0,96255.0,0.7216]
[1739853110649,0.03666173,96256.0,96255.0,0.7216]
[1739853110850,0.69746173,96256.0,96246.0,0.00015585]
[1739853111053,0.3608,96247.0,96238.0,0.2078277]
[1739853111256,0.0323,96246.0,96238.0,0.1080277]
[1739853111953,0.0323,96246.0,96235.0,0.0015584]
[1739853112153,0.0323,96246.0,96240.0,0.2078232]
[1739853112345,0.0301,96245.0,96240.0,0.2078232]
[1739853113855,0.0301,96245.0,96235.0,0.3623584]
[1739853114258,0.0301,96245.0,96235.0,0.5701923]
[1739853114455,0.0303,96244.0,96235.0,0.5701923]
[1739853115548,0.0313,96244.0,96235.0,0.5701923]
[1739853115752,0.04165935,96244.0,96235.0,0.5701923]
[1739853116056,0.0313,96244.0,96235.0,0.5701923]
[1739853117356,0.0323,96244.0,96235.0,0.5701923]
[1739853119657,0.04292503,96244.0,96235.0,0.5701923]
[1739853119857,0.04292503,96244.0,96236.0,0.2078313]
[1739853120060,0.04292503,96244.0,96235.0,0.3623584]
[1739853120961,0.04192503,96244.0,96235.0,0.3623584]
[1739853121161,0.04392503,96244.0,96235.0,0.3623584]
[1739853121356,0.04392503,96244.0,96235.0,0.3608]
[1739853121562,0.04392503,96244.0,96235.0,0.5686334]
[1739853121861,0.3608,96236.0,96232.0,0.00015585]
[1739853122068,0.0304,96235.0,96232.0,0.00015585]
[1739853122362,0.2078382,96234.0,96232.0,1e-08]
[1739853122863,0.2164,96233.0,96232.0,1e-08]
[1739853123252,0.5164,96233.0,96232.0,1e-08]
[1739853124061,0.5174,96233.0,96232.0,1e-08]
[1739853126157,0.2078452,96231.0,96204.0,0.2079009]
[1739853126363,0.2078871,96211.0,96206.0,0.18703088]
[1739853126551,0.2078955,96207.0,96195.0,1.1142]
[1739853126748,0.2078955,96207.0,96194.0,0.4222]
[1739853126749,0.3608,96202.0,96196.0,0.2079172]
[1739853127359,0.3538,96202.0,96196.0,0.2079172]
[1739853127756,0.3468,96202.0,96194.0,0.42284]
[1739853127953,0.3468,96202.0,96195.0,0.10736]
[1739853128261,0.0324,96201.0,96196.0,0.014]
[1739853129654,0.0324,96201.0,96196.0,0.007]
[1739853129869,0.0324,96201.0,96197.0,0.1076]
[1739853130256,0.2488,96201.0,96197.0,0.1076]
[1739853130461,0.2498,96201.0,96197.0,0.1076]
[1739853130967,0.2508,96201.0,96197.0,0.1076]
[1739853133561,0.2508,96201.0,96194.0,0.00072]
[1739853133762,0.2508,96201.0,96189.0,0.00015585]
[1739853133972,0.2079217,96195.0,96189.0,0.00015585]
[1739853134160,0.0638,96194.0,96189.0,0.00015585]
[1739853134669,0.3608,96193.0,96189.0,0.00015585]
[1739853134862,0.3598,96193.0,96189.0,0.00015585]
[1739853135058,0.3598,96193.0,96189.0,0.00215585]
[1739853136868,0.3598,96193.0,96189.0,0.00015585]
[1739853137863,0.5677263,96193.0,96189.0,0.00015585]
[1739853138566,0.2079319,96191.0,96189.0,1e-08]
[1739853138767,0.2164,96190.0,96189.0,1e-08]
[1739853139163,0.5164,96190.0,96152.0,0.3608]
[1739853139469,0.10180258,96162.0,96153.0,0.03]
[1739853140671,0.31035594,96167.0,96153.0,0.03]
[1739853140672,0.31035594,96167.0,96153.0,0.033]
[1739853141066,0.21655594,96167.0,96158.0,0.2080004]
[1739853142370,0.21655594,96167.0,96157.0,0.10180258]
[1739853142571,0.21655594,96167.0,96153.0,0.033]
[1739853143362,0.21655594,96167.0,96158.0,0.001]
[1739853143972,0.21655594,96167.0,96157.0,0.10180258]
[1739853144666,0.21655594,96167.0,96158.0,0.001]
[1739853146166,0.24755594,96167.0,96158.0,0.001]
[1739853146368,0.24755594,96167.0,96157.0,0.002]
[1739853147076,0.24755594,96167.0,96158.0,0.001]
[1739853147477,0.24755594,96167.0,96153.0,0.03]
[1739853147670,0.24755594,96167.0,96157.0,0.002]
[1739853148368,0.3608,96158.0,96157.0,0.002]
[1739853148563,0.3608,96158.0,96156.0,0.114]
[1739853148766,0.3598,96158.0,96156.0,0.114]
[1739853149265,0.3598,96158.0,96153.0,0.03]
[1739853149467,0.3598,96158.0,96153.0,0.14396]
[1739853150269,0.3598,96158.0,96157.0,0.002]
[1739853150877,0.3598,96158.0,96153.0,0.14696]
[1739853151065,0.5762,96158.0,96153.0,0.14696]
[1739853151472,0.5762,96158.0,96157.0,0.002]
[1739853153784,0.5762,96158.0,96153.0,0.03]
[1739853153785,0.5762,96158.0,96153.0,0.033]
[1739853154382,0.5802,96158.0,96153.0,0.03]
[1739853154577,0.7932031,96158.0,96153.0,0.03]
[1739853154892,0.7892031,96158.0,96153.0,0.03]
[1739853155072,0.2080053,96157.0,96153.0,0.03]
[1739853155583,0.2381053,96157.0,96153.0,0.03]
[1739853155773,0.0301,96157.0,96153.0,0.03]
[1739853155973,0.58272001,96158.0,96153.0,0.03]
[1739853156177,0.5822,96158.0,96153.0,0.03]
[1739853156373,0.5822,96158.0,96154.0,0.2080085]
[1739853156775,0.5822,96158.0,96155.0,0.0307]
[1739853156977,0.003,96157.0,96155.0,0.0307]
[1739853157274,0.006,96157.0,96155.0,0.0307]
[1739853157475,0.003,96157.0,96155.0,0.0307]
[1739853157869,0.58372001,96158.0,96155.0,0.0307]
[1739853158072,0.5832,96158.0,96155.0,0.0307]
[1739853158676,0.2204,96158.0,96155.0,0.0307]
[1739853158882,0.004,96157.0,96155.0,0.0307]
[1739853161388,0.008,96157.0,96155.0,0.0307]
[1739853161686,0.004,96157.0,96155.0,0.0307]
[1739853161886,0.007,96157.0,96155.0,0.0307]
[1739853163374,0.004,96157.0,96155.0,0.0307]
[1739853163582,0.007,96157.0,96155.0,0.0307]
[1739853166287,0.007,96157.0,96155.0,0.2387068]
[1739853167389,0.2164,96166.0,96155.0,0.2387068]
[1739853167390,0.00015594,96167.0,96165.0,0.2079863]
[1739853167686,0.00015594,96167.0,96166.0,0.0321]
[1739853169188,0.00215594,96167.0,96166.0,0.0321]
[1739853169786,0.00315594,96167.0,96166.0,0.0321]
[1739853170193,0.00315594,96167.0,96161.0,0.3608]
[1739853170388,0.00415594,96167.0,96162.0,0.0321]
[1739853170694,0.00515594,96167.0,96162.0,0.0321]
[1739853171192,0.00515594,96167.0,96162.0,0.2400916]
[1739853171393,0.00015594,96167.0,96162.0,0.2400916]
[1739853171691,0.00215594,96167.0,96162.0,0.2400916]
[1739853175094,0.00215594,96167.0,96163.0,0.2079895]
[1739853175302,0.18570557,96165.0,96163.0,0.2079895]
[1739853176789,0.18770557,96165.0,96163.0,0.2079895]
[1739853177895,0.18870557,96165.0,96163.0,0.2079895]
[1739853178100,0.003,96165.0,96163.0,0.2079895]
[1739853180701,0.003,96165.0,96163.0,0.21848146]
[1739853183694,0.003,96165.0,96163.0,0.2079895]
[1739853184899,0.003,96165.0,96163.0,0.21819249]
[1739853185099,0.003,96165.0,96163.0,0.2079895]
[1739853185604,0.003,96165.0,96162.0,0.0321]
[1739853185998,0.003,96165.0,96164.0,0.3608]
[1739853186192,0.003,96165.0,96164.0,0.47368]
[1739853187201,0.002,96165.0,96164.0,0.47368]
[1739853187798,0.00015594,96167.0,96165.0,0.2079862]
[1739853188000,0.00015594,96167.0,96166.0,0.0316]
[1739853188703,0.031,96180.0,96172.0,0.2079711]
[1739853188704,0.15532857,96173.0,96172.0,0.2079711]
[1739853188999,0.15532857,96173.0,96172.0,0.5687711]
[1739853190805,0.10511689,96173.0,96172.0,0.5687711]
[1739853191012,0.0697911,96173.0,96172.0,0.5717711]
[1739853191307,0.0697911,96173.0,96172.0,0.5727711]
[1739853193294,0.0697911,96173.0,96172.0,0.5707711]
[1739853193500,0.00015594,96182.0,96181.0,0.2079516]
[1739853193699,0.00015594,96182.0,96181.0,0.5687516]
[1739853194309,0.00015594,96182.0,96181.0,0.57924596]
[1739853194495,0.00015594,96182.0,96181.0,0.58124596]
[1739853194997,0.00015594,96182.0,96181.0,0.58424596]
[1739853196395,0.00015594,96182.0,96181.0,0.58224596]
[1739853196604,0.00015594,96182.0,96181.0,0.58124596]
[1739853197303,0.00015594,96182.0,96181.0,0.5717516]
[1739853197500,0.00015594,96182.0,96181.0,0.003]
[1739853198102,0.00015594,96182.0,96181.0,0.001]
[1739853198403,0.00015594,96182.0,96173.0,0.0613]
[1739853199701,0.00315594,96182.0,96179.0,0.2079548]
[1739853200509,0.00315594,96182.0,96180.0,0.3608]
[1739853200911,0.00015594,96182.0,96180.0,0.3608]
[1739853201313,0.00015594,96182.0,96173.0,0.0613]
[1739853201612,0.00215594,96182.0,96173.0,0.0613]
[1739853202009,0.00215594,96182.0,96176.0,0.2079606]
[1739853202212,0.00215594,96182.0,96173.0,0.0613]
[1739853202411,0.00215594,96182.0,96181.0,0.3608]
[1739853203003,0.00315594,96182.0,96181.0,0.3608]
[1739853203200,0.00415594,96182.0,96181.0,0.3608]
[1739853204216,0.00415594,96182.0,96180.0,0.2079533]
[1739853204415,0.00015594,96182.0,96181.0,0.003]
[1739853206220,0.00315594,96182.0,96181.0,0.3608]
[1739853207320,0.00215594,96182.0,96181.0,0.3608]
[1739853207522,0.00415594,96182.0,96181.0,0.3608]
[1739853210222,0.00215594,96182.0,96181.0,0.3618]
[1739853212012,0.00415594,96182.0,96181.0,0.3608]
[1739853213128,0.00215594,96182.0,96181.0,0.3608]
[1739853213315,0.00315594,96182.0,96181.0,0.3608]
[1739853213821,0.00415594,96182.0,96181.0,0.3608]
[1739853215022,0.00215594,96182.0,96181.0,0.3628]
[1739853215224,0.00015594,96182.0,96181.0,0.3628]
[1739853215419,0.00015594,96182.0,96181.0,0.3658]
[1739853216121,0.00015594,96182.0,96181.0,0.3628]
[1739853216316,0.00015594,96182.0,96181.0,0.3608]
[1739853217024,0.00015594,96182.0,96181.0,0.3618]
[1739853219115,0.00015594,96182.0,96181.0,0.3608]
[1739853219923,0.00015594,96182.0,96181.0,0.3618]
[1739853222619,0.00015594,96182.0,96181.0,0.3608]
[1739853222820,0.00015594,96182.0,96181.0,0.3628]
[1739853224628,0.00015594,96182.0,96181.0,0.3638]
[1739853225025,0.00015594,96182.0,96181.0,0.3957]
[1739853225224,0.00015594,96182.0,96181.0,0.3947]
[1739853234231,0.00015594,96182.0,96181.0,0.58173088]
[1739853237141,0.00015594,96182.0,96181.0,0.3947]
[1739853238932,0.00115594,96182.0,96181.0,0.3987]
[1739853239132,0.00115594,96182.0,96181.0,0.4027]
[1739853239631,0.00115594,96182.0,96181.0,0.3977]
[1739853239828,0.00115594,96182.0,96181.0,0.4027]
[1739853241242,0.00115594,96182.0,96181.0,0.4037]
[1739853241539,0.00115594,96182.0,96181.0,1.9037]
[1739853241941,0.00015594,96182.0,96181.0,1.8977]
[1739853242142,0.00115594,96182.0,96181.0,1.9037]
[1739853244241,0.00015594,96182.0,96181.0,2.11479302]
[1739853244444,0.00115594,96182.0,96181.0,2.12079302]
[1739853245333,0.00015594,96182.0,96181.0,2.11479302]
[1739853245535,0.00115594,96182.0,96181.0,2.12079302]
[1739853245936,0.00115594,96182.0,96181.0,2.11579302]
[1739853246132,0.00115594,96182.0,96181.0,2.11979302]
[1739853246532,0.00115594,96182.0,96181.0,2.11579302]
[1739853246735,0.00115594,96182.0,96181.0,2.12079302]
[1739853247139,0.00115594,96182.0,96181.0,2.11579302]
[1739853247345,0.00015594,96182.0,96181.0,2.11479302]
[1739853247535,0.00115594,96182.0,96181.0,2.12079302]
[1739853248642,0.00115594,96182.0,96181.0,1.8718]
[1739853248844,0.00115594,96182.0,96181.0,1.8708]
[1739853249341,0.00115594,96182.0,96181.0,0.3668]
[1739853249543,0.00115594,96182.0,96181.0,0.3718]
[1739853249748,0.00115594,96182.0,96181.0,0.3219]
[1739853250642,0.00115594,96182.0,96181.0,0.3209]
[1739853251039,0.00115594,96182.0,96181.0,0.3199]
[1739853251843,0.00015594,96182.0,96181.0,0.3189]
[1739853252853,0.00015594,96182.0,96181.0,0.3179]
[1739853255141,0.00015594,96182.0,96181.0,0.007]
[1739853266360,0.51655594,96182.0,96168.0,0.3608]
[1739853266564,0.06694034,96178.0,96168.0,0.3608]
[1739853266753,0.0319,96177.0,96168.0,0.3608]
[1739853267265,0.2398612,96177.0,96168.0,0.3608]
[1739853267654,0.2398612,96177.0,96168.0,0.3668]
[1739853268354,0.2398612,96177.0,96168.0,0.3658]
[1739853268560,0.2398612,96177.0,96168.0,0.3718]
[1739853268968,0.207964,96176.0,96168.0,0.3718]
[1739853269263,0.207964,96176.0,96168.0,0.3698]
[1739853269865,0.2079669,96174.0,96168.0,0.3698]
[1739853270171,0.0313,96173.0,96168.0,0.3608]
[1739853270360,0.0313,96173.0,96168.0,0.3638]
[1739853270563,0.031,96172.0,96168.0,0.3638]
[1739853270763,0.031,96172.0,96169.0,0.1086]
[1739853271162,0.031,96172.0,96168.0,0.3638]
[1739853271358,0.031,96172.0,96169.0,0.10856]
[1739853273163,0.031,96172.0,96169.0,0.11156]
[1739853273562,0.031,96172.0,96169.0,0.11356]
[1739853273771,0.04139829,96172.0,96169.0,0.11356]
[1739853273973,0.04139829,96172.0,96169.0,0.005]
[1739853274178,0.031,96172.0,96169.0,0.005]
[1739853274474,0.031,96172.0,96170.0,0.1084]
[1739853275569,0.2389726,96172.0,96170.0,0.1084]
[1739853275768,0.2389726,96172.0,96170.0,0.003]
[1739853276364,0.24946491,96172.0,96170.0,0.003]
[1739853277275,0.24946491,96172.0,96170.0,0.005]
[1739853282673,0.24946491,96172.0,96171.0,0.0317]
[1739853284079,0.24946491,96172.0,96171.0,0.0337]
[1739853285280,0.21846491,96172.0,96171.0,0.0367]
[1739853289487,0.27872584,96172.0,96171.0,0.0367]
[1739853292978,0.21846491,96172.0,96171.0,0.0367]
[1739853295391,0.01049231,96172.0,96171.0,0.0367]
[1739853295581,0.21665419,96173.0,96171.0,0.0367]
[1739853295980,0.21665419,96173.0,96172.0,0.0329]
[1739853296986,0.2164,96175.0,96172.0,0.0329]
[1739853298090,0.2164,96175.0,96172.0,0.0349]
[1739853298983,0.22679163,96175.0,96172.0,0.0369]
[1739853299591,0.43475723,96175.0,96172.0,0.0369]
[1739853300193,0.06073228,96174.0,96172.0,0.0369]
[1739853300586,0.26870048,96174.0,96172.0,0.0369]
[1739853300787,0.26870048,96174.0,96172.0,0.004]
[1739853303393,0.13712979,96173.0,96172.0,0.004]
[1739853305091,0.13712979,96173.0,96172.0,0.002]
[1739853305290,0.13712979,96173.0,96172.0,0.004]
[1739853308594,0.08722979,96173.0,96172.0,0.0371]
[1739853310000,0.08722979,96173.0,96172.0,0.04736308]
[1739853310608,0.15418398,96175.0,96173.0,0.2079689]
[1739853310818,0.18653235,96178.0,96175.0,0.2079635]
[1739853311017,0.18653235,96178.0,96177.0,0.3608]
[1739853312620,0.18653235,96178.0,96177.0,0.3618]
[1739853313712,0.18653235,96178.0,96177.0,0.4199]
[1739853313908,0.00015594,96182.0,96177.0,0.4199]
[1739853314518,0.00015594,96182.0,96179.0,0.3608]
[1739853314915,0.01067356,96182.0,96177.0,0.0591]
[1739853315115,0.01067356,96182.0,96177.0,0.033]
[1739853315522,0.032,96181.0,96177.0,0.033]
[1739853315718,0.032,96181.0,96178.0,0.10908]
[1739853315925,0.0325,96180.0,96178.0,0.10908]
[1739853316221,0.0325,96180.0,96177.0,0.3928]
[1739853316819,0.0325,96180.0,96179.0,0.001]
[1739853317414,0.21874344,96180.0,96179.0,0.001]
[1739853317615,0.21874344,96180.0,96177.0,0.3928]
[1739853318416,0.21874344,96180.0,96177.0,0.031]
[1739853318723,0.21874344,96180.0,96179.0,0.001]
[1739853320026,0.21874344,96180.0,96177.0,0.033]
[1739853320724,0.18624344,96180.0,96178.0,0.2079581]
[1739853320930,0.18624344,96180.0,96179.0,0.001]
[1739853323223,0.18624344,96180.0,96178.0,0.2079581]
[1739853324333,0.00015594,96182.0,96177.0,0.3928]
[1739853324633,0.00015594,96182.0,96181.0,0.2079516]
[1739853349243,0.0316,96194.0,96179.0,0.3608]
[1739853349244,0.0316,96194.0,96193.0,0.2079258]
[1739853349443,0.0316,96194.0,96193.0,0.5687258]
[1739853350350,0.0316,96194.0,96193.0,0.57903259]
[1739853350547,0.0366,96194.0,96193.0,0.57903259]
[1739853350751,0.0406,96194.0,96193.0,0.57903259]
[1739853352355,0.0406,96194.0,96193.0,0.76595684]
[1739853352945,0.03375594,96194.0,96193.0,0.76595684]
[1739853353145,0.009,96194.0,96193.0,0.76595684]
[1739853357157,0.00015594,96203.0,96193.0,0.55803104]
[1739853357357,0.00015594,96203.0,96202.0,0.3608]
[1739853358457,0.00415594,96203.0,96202.0,0.3608]
[1739853358655,0.00415594,96203.0,96202.0,0.5687063]
[1739853359561,0.00815594,96203.0,96202.0,0.5687063]
[1739853360254,0.01115594,96203.0,96202.0,0.5697063]
[1739853360460,0.00715594,96203.0,96202.0,0.5697063]
[1739853360653,0.01015594,96203.0,96202.0,0.5707063]
[1739853373261,0.01015594,96203.0,96202.0,0.2099063]
[1739853373466,0.01015594,96203.0,96202.0,0.5707063]
[1739853380776,0.01015594,96203.0,96202.0,0.5869563]
[1739853381277,0.01015594,96203.0,96202.0,0.61295424]
[1739853382274,0.01015594,96203.0,96202.0,0.5869563]
[1739853382474,0.01015594,96203.0,96202.0,0.5909563]
[1739853382475,0.00115594,96203.0,96202.0,0.5909563]
[1739853382679,0.00215594,96203.0,96202.0,0.5979563]
[1739853382990,0.00115594,96203.0,96202.0,0.5969563]
[1739853383379,0.00015594,96203.0,96202.0,0.5939563]
[1739853383984,0.00015594,96203.0,96202.0,0.78067603]
[1739853384186,0.00015594,96203.0,96202.0,0.7766755]
[1739853384785,0.00015594,96203.0,96202.0,0.78067571]
[1739853385891,0.00015594,96203.0,96202.0,0.77967571]
[1739853386391,0.00015594,96203.0,96202.0,0.76342603]
[1739853386577,0.00015594,96203.0,96202.0,0.75842603]
[1739853386783,0.00015594,96203.0,96202.0,0.76342603]
[1739853387691,0.00015594,96203.0,96202.0,0.38404988]
[1739853387887,0.00015594,96203.0,96202.0,0.3688]
[1739853388478,0.00015594,96203.0,96202.0,0.3678]
[1739853388987,0.00015594,96203.0,96202.0,0.3648]
[1739853389181,0.00015594,96203.0,96202.0,0.3638]
[1739853394685,0.00015594,96203.0,96202.0,0.003]
[1739853401395,0.00015594,96203.0,96202.0,0.002]
[1739853401800,0.00015594,96203.0,96202.0,0.001]
[1739853402497,0.00015594,96203.0,96201.0,0.207907]
[1739853405600,0.00015594,96203.0,96201.0,0.208907]
[1739853410698,0.00015594,96203.0,96202.0,0.0317]
[1739853411204,0.00015594,96203.0,96202.0,0.063]
[1739853414501,0.00015594,96203.0,96202.0,0.24986264]
[1739853414707,0.00015594,96203.0,96202.0,0.61066264]
[1739853417607,0.00015594,96203.0,96202.0,0.4238]
[1739853423414,0.00015594,96203.0,96202.0,0.3925]